bitfinex/quotes_ETHUSD_20250519
["timestamp","ask_amount","ask_price","bid_price","bid_amount"]
[1747639336857,0.3475589,2406.8,2406.2,5.49524697]
[1747639337057,0.3475589,2406.8,2406.2,1.3394]
[1747639337359,4.15621991,2406.1,2405.6,0.2310683]
[1747639337558,4.15652202,2405.9,2405.6,0.2310683]
[1747639337747,4.15608401,2406.2,2405.6,0.2310683]
[1747639338074,1.84988418,2406.2,2405.6,4.15693745]
[1747639338247,4.15612019,2406.1,2405.6,4.15693745]
[1747639338453,4.1564809,2405.9,2405.5,11.7113]
[1747639338652,4.1563607,2406.0,2405.5,15.86839917]
[1747639339179,4.15626043,2406.1,2405.5,5.63141661]
[1747639339346,10.186,2406.3,2405.5,1.4743]
[1747639339551,4.15626992,2406.1,2405.5,5.63138931]
[1747639339876,4.15687456,2405.7,2405.3,17.961]
[1747639340381,4.15667807,2405.8,2405.3,4.15745709]
[1747639340589,4.1568074,2405.7,2405.2,14.39158057]
[1747639341882,4.15637132,2406.0,2405.4,4.15723193]
[1747639342102,4.15705291,2405.6,2405.2,10.234]
[1747639342387,4.15657452,2405.9,2405.4,4.15721327]
[1747639342780,4.15670397,2405.8,2405.3,4.15740789]
[1747639342982,11.6164,2406.1,2405.2,10.234]
[1747639343165,4.1570853,2405.6,2405.2,10.234]
[1747639343370,4.15688331,2405.7,2405.2,14.39165792]
[1747639343691,4.15688331,2405.7,2405.3,4.15747486]
[1747639343895,4.1567483,2405.8,2405.3,4.15747486]
[1747639344193,25.8475156,2406.1,2405.5,4.15706633]
[1747639344194,4.15634459,2406.0,2405.5,4.15706633]
[1747639344488,4.15655211,2405.9,2405.4,4.15721699]
[1747639344848,11.5134,2406.1,2405.3,4.15746671]
[1747639345052,1.56693769,2406.0,2405.1,1.4552]
[1747639345294,4.15698053,2405.6,2405.1,11.6322]
[1747639345679,4.1568954,2405.7,2405.2,4.15764944]
[1747639345877,1.56693769,2406.0,2405.3,4.15746735]
[1747639346093,4.1563528,2406.0,2405.5,4.15700256]
[1747639346295,14.22615843,2406.1,2405.5,4.15700256]
[1747639346468,11.592,2406.4,2405.6,0.0415673]
[1747639346682,4.15619164,2406.1,2405.7,1.385]
[1747639346889,4.15654616,2405.9,2405.7,1.385]
[1747639347090,4.15637035,2406.0,2405.7,1.385]
[1747639347611,4.15588104,2406.3,2405.8,4.15653525]
[1747639347932,4.1558359,2406.3,2405.8,4.15653525]
[1747639348159,4.15541242,2406.5,2406.0,4.15626256]
[1747639348404,4.20472815,2406.9,2406.5,4.15528339]
[1747639348579,4.20472815,2406.9,2406.3,1.4358]
[1747639348580,4.15492009,2406.8,2406.4,4.1554912]
[1747639348785,0.05,2406.9,2406.8,4.15489446]
[1747639349115,0.05,2406.9,2406.8,5.54769446]
[1747639349308,0.05,2406.9,2406.8,15.70769446]
[1747639351714,0.05,2406.9,2406.8,1.3928]
[1747639352082,0.05,2406.9,2406.8,5.54769446]
[1747639352614,0.05,2406.9,2406.8,1.3928]
[1747639352804,0.05,2406.9,2406.8,5.54769446]
[1747639353239,0.05,2406.9,2406.8,1.3928]
[1747639353927,0.05,2406.9,2406.7,4.1550507]
[1747639354130,0.05,2406.9,2406.6,10.173]
[1747639354806,0.05,2406.9,2406.7,4.1550671]
[1747639354990,4.20479843,2406.9,2406.6,10.173]
[1747639355622,4.1550671,2406.7,2406.6,10.173]
[1747639355820,1.41026767,2406.7,2405.6,1.4794]
[1747639356022,4.14110439,2406.5,2405.5,0.28852343]
[1747639356227,4.15680959,2405.7,2405.5,0.28852343]
[1747639356444,4.15713988,2405.5,2404.3,0.38471953]
[1747639356619,8.29863991,2405.3,2404.3,0.38471953]
[1747639356824,4.15860594,2404.7,2404.3,0.38471953]
[1747639357140,4.15840153,2404.8,2404.3,4.54393242]
[1747639357632,4.15904175,2404.4,2404.3,0.38471953]
[1747639357805,4.57494593,2404.4,2404.3,0.38471953]
[1747639359835,4.15836939,2404.8,2404.1,4.20953991]
[1747639359836,4.15883724,2404.6,2404.1,4.20953991]
[1747639360042,10.139,2404.7,2404.1,0.05]
[1747639360212,4.15930413,2404.3,2404.1,0.05]
[1747639360723,4.15916173,2404.4,2404.1,0.05]
[1747639361056,4.15909193,2404.4,2404.1,0.05]
[1747639361262,4.15854432,2404.7,2404.1,0.05]
[1747639361460,4.15897085,2404.5,2404.1,0.05]
[1747639361983,4.15876583,2404.6,2404.1,0.05]
[1747639362417,4.15887754,2404.5,2404.1,0.05]
[1747639362615,4.15907977,2404.4,2404.1,0.05]
[1747639362836,4.99069182,2404.5,2404.1,0.05]
[1747639363051,4.15858072,2404.7,2404.1,0.05]
[1747639363052,4.15881888,2404.6,2404.1,4.20952813]
[1747639363418,4.1588861,2404.5,2404.1,0.05]
[1747639364019,4.15854813,2404.7,2404.1,4.20954216]
[1747639364219,4.15888109,2404.5,2404.1,0.05]
[1747639364444,4.15903699,2404.5,2404.1,0.05]
[1747639364717,4.15886878,2404.5,2404.1,0.05]
[1747639364952,4.1586991,2404.6,2404.1,0.05]
[1747639365250,4.15894567,2404.5,2404.1,0.05]
[1747639365929,4.15906542,2404.4,2404.1,0.05]
[1747639366458,6.80434906,2404.7,2404.1,4.2095154]
[1747639366754,4.15777954,2405.2,2404.7,4.15840314]
[1747639366958,4.15777954,2405.2,2404.2,1.38579022]
[1747639366959,4.15787451,2405.1,2404.6,4.1585952]
[1747639367251,4.1576584,2405.2,2404.2,1.3442]
[1747639367437,4.15860031,2404.7,2404.2,1.3442]
[1747639367646,4.15860031,2404.7,2404.2,5.50351013]
[1747639367816,4.15856591,2404.7,2404.2,5.54504524]
[1747639368015,4.15861573,2404.7,2404.2,5.50358726]
[1747639368517,4.15938773,2404.2,2404.1,0.05]
[1747639370834,15.64370557,2404.3,2404.1,0.05]
[1747639371556,4.15938773,2404.2,2404.1,0.05]
[1747639373931,24.40838773,2404.2,2404.1,0.05]
[1747639374251,14.28138773,2404.2,2404.1,0.05]
[1747639374461,10.122,2404.3,2404.1,0.05]
[1747639374748,14.281293,2404.3,2404.1,0.05]
[1747639375452,4.159293,2404.3,2404.1,0.05]
[1747639375823,4.15938773,2404.2,2404.1,0.05]
[1747639376021,4.2076554,2404.2,2404.1,0.05]
[1747639376243,4.15938773,2404.2,2404.1,0.05]
[1747639376419,5.61288773,2404.2,2404.1,0.05]
[1747639376967,15.7311554,2404.2,2404.1,0.05]
[1747639377178,18.16922422,2404.2,2404.1,0.05]
[1747639377355,38.41422422,2404.2,2404.1,0.05]
[1747639379129,18.16922422,2404.2,2404.1,0.05]
[1747639379332,46.41122422,2404.2,2404.1,0.05]
[1747639379851,28.28322422,2404.2,2404.1,0.05]
[1747639380254,26.82972422,2404.2,2404.1,0.05]
[1747639381956,10.129,2404.7,2404.1,0.05]
[1747639382155,5.50324348,2405.2,2404.2,11.543]
[1747639382485,4.15731271,2405.4,2404.3,1.45558509]
[1747639382777,11.4155,2405.5,2404.3,1.414]
[1747639382778,0.3475589,2405.1,2404.3,1.414]
[1747639382955,4.1586316,2404.7,2404.3,1.414]
[1747639383306,0.41586316,2404.7,2404.1,0.05]
[1747639383442,1.3933,2404.6,2404.1,0.05]
[1747639384045,4.15922768,2404.3,2404.1,0.05]
[1747639384932,4.15938773,2404.2,2404.1,0.05]
[1747639385592,1.3933,2404.6,2404.2,4.15938773]
[1747639385731,4.1587205,2404.6,2404.2,1.4369]
[1747639385963,4.15888208,2404.5,2404.2,1.4369]
[1747639386616,0.41587205,2404.6,2404.1,0.05]
[1747639386768,4.15893826,2404.5,2404.1,0.05]
[1747639386973,4.15860286,2404.7,2404.1,0.05]
[1747639387290,4.15882479,2404.6,2404.1,4.20948815]
[1747639387457,4.15836863,2404.8,2404.2,4.15935719]
[1747639387657,1.4417,2405.0,2404.2,1.3971]
[1747639387882,4.158298,2404.9,2404.4,4.15896903]
[1747639388088,4.15837194,2404.8,2404.3,4.15911408]
[1747639388254,4.15869764,2404.6,2404.2,5.55648172]
[1747639388460,4.15869764,2404.6,2404.2,1.3971]
[1747639388869,4.15862039,2404.7,2404.2,5.55643685]
[1747639389091,4.15872984,2404.6,2404.2,1.3971]
[1747639389275,2.80164926,2405.0,2404.2,1.3971]
[1747639389478,4.15817705,2404.9,2404.4,4.15893394]
[1747639389952,4.15822387,2404.9,2404.3,4.15921474]
[1747639390156,4.15822387,2404.9,2404.5,4.15885528]
[1747639390356,4.15822387,2404.9,2404.4,4.1589416]
[1747639390798,4.15822387,2404.9,2404.5,4.15885302]
[1747639390960,4.15822387,2404.9,2404.3,4.15914166]
[1747639391160,10.094,2405.7,2404.8,1.3843]
[1747639391384,4.1574582,2405.4,2404.9,4.15806645]
[1747639391692,0.3475589,2405.4,2404.8,1.3843]
[1747639391856,4.15812405,2405.0,2404.6,10.127]
[1747639392054,4.15791766,2405.1,2404.6,14.28560956]
[1747639392283,4.15777231,2405.2,2404.7,4.15842819]
[1747639392590,4.50494551,2405.4,2404.9,4.15807584]
[1747639392893,0.3475589,2405.4,2405.1,4.15783127]
[1747639393256,0.3475589,2405.4,2405.2,4.15758473]
[1747639393486,0.3475589,2405.4,2405.3,4.1990573]
[1747639393689,0.3475589,2405.4,2405.3,5.81932707]
[1747639393860,0.3475589,2405.4,2405.3,13.86089506]
[1747639394059,0.3475589,2405.4,2405.3,13.81932707]
[1747639394360,0.3475589,2405.4,2405.3,14.04333156]
[1747639394562,0.3475589,2405.4,2405.3,19.84114856]
[1747639394758,0.05,2406.9,2406.2,0.2568]
[1747639394962,4.15526079,2406.6,2406.2,10.3818]
[1747639395174,4.98629216,2406.6,2406.2,10.3818]
[1747639395399,4.15496088,2406.8,2406.2,14.53771773]
[1747639395585,4.15496088,2406.8,2406.3,4.1556575]
[1747639395895,4.15491079,2406.8,2406.3,4.1556575]
[1747639396098,4.15491079,2406.8,2406.4,4.15557825]
[1747639396302,0.05,2406.9,2406.5,0.04155276]
[1747639396463,0.05,2406.9,2406.2,10.3818]
[1747639396464,0.05,2406.9,2406.6,4.15515332]
[1747639396795,0.05,2406.9,2406.7,4.15505029]
[1747639396959,0.05,2406.9,2406.8,4.19644102]
[1747639397166,0.05,2406.9,2406.8,5.54709446]
[1747639397482,0.05,2406.9,2406.6,1.3794]
[1747639397888,4.20476026,2406.9,2406.3,5.53506928]
[1747639398064,0.88590595,2406.9,2406.4,14.27858131]
[1747639398263,0.05,2406.9,2406.4,10.123]
[1747639398491,0.05,2406.9,2406.3,1.3794]
[1747639398827,4.20479886,2406.9,2406.4,14.27857375]
[1747639399019,4.20473204,2406.9,2406.4,14.27857375]
[1747639399303,0.05,2406.9,2406.4,10.123]
[1747639400034,4.2047278,2406.9,2406.4,14.2784814]
[1747639400232,5.04063867,2406.9,2406.4,14.2784814]
[1747639400394,5.04074932,2406.9,2406.4,14.27858196]
[1747639400998,0.88591087,2406.9,2406.5,4.15537573]
[1747639401211,0.05,2406.9,2406.8,4.15489446]
[1747639401431,0.05,2406.9,2406.7,4.15497917]
[1747639401616,0.05,2406.9,2406.8,4.15489446]
[1747639402126,0.05,2406.9,2406.8,10.069]
[1747639402750,0.05,2406.9,2406.8,14.22389446]
[1747639403111,0.05,2406.9,2406.3,1.3794]
[1747639403299,0.05,2406.9,2406.5,4.15530498]
[1747639403500,4.15514206,2406.7,2406.3,1.3794]
[1747639403737,4.15498146,2406.8,2406.3,15.60306626]
[1747639403938,0.88590663,2406.9,2406.2,4.15583475]
[1747639404120,0.88590663,2406.9,2406.0,1.3919]
[1747639404121,0.88590663,2406.9,2406.3,10.068]
[1747639404314,4.15498069,2406.8,2406.3,14.22374959]
[1747639404646,4.15512752,2406.7,2406.2,4.15587832]
[1747639404834,4.15499431,2406.8,2406.3,10.068]
[1747639405131,4.20479825,2406.9,2406.4,4.15549787]
[1747639405336,4.2047944,2406.9,2406.4,4.15549787]
[1747639405538,4.2047944,2406.9,2406.3,14.22364077]
[1747639405539,0.05,2406.9,2406.3,14.22364077]
[1747639405836,4.1550272,2406.8,2406.3,14.22366239]
[1747639406215,4.15489446,2406.8,2406.3,10.068]
[1747639406416,5.76581429,2406.9,2406.4,4.15557707]
[1747639406714,4.15493954,2406.8,2406.4,4.15557707]
[1747639407049,1.12647561,2406.8,2406.3,14.22365303]
[1747639407354,5.28146212,2406.8,2406.4,4.15556341]
[1747639407847,0.05,2406.9,2406.6,4.15506733]
[1747639408150,0.05,2406.9,2406.0,15.61016522]
[1747639408151,1.3471,2406.8,2406.0,1.3919]
[1747639408354,1.3471,2406.8,2406.0,4.15619344]
[1747639408524,0.05,2406.9,2405.8,28.022]
[1747639408709,0.05,2406.9,2406.2,1.3922]
[1747639408912,0.05,2406.9,2406.5,4.15531391]
[1747639409534,4.20474042,2406.9,2406.4,4.15557761]
[1747639409839,0.05,2406.9,2406.4,4.15557761]
[1747639410038,4.20473057,2406.9,2406.4,4.15546486]
[1747639410236,0.05,2406.9,2406.5,4.15540545]
[1747639410445,0.05,2406.9,2406.4,10.067]
[1747639410626,4.20479879,2406.9,2406.4,14.2225089]
[1747639411039,4.20479879,2406.9,2406.5,4.15539097]
[1747639411460,0.05,2406.9,2406.5,4.15539097]
[1747639411934,0.05,2406.9,2406.2,1.3922]
[1747639412141,4.15539977,2406.6,2406.2,1.3922]
[1747639412352,4.15554335,2406.5,2406.3,10.067]
[1747639412676,0.41553998,2406.6,2405.9,10.067]
[1747639412892,1.4199,2406.7,2406.3,4.15567133]
[1747639413030,5.57498041,2406.7,2406.2,4.15578218]
[1747639413355,5.57498041,2406.7,2406.3,4.15573614]
[1747639413529,1.4199,2406.7,2406.3,4.15573614]
[1747639414033,1.4199,2406.7,2406.2,4.15590748]
[1747639414441,1.4199,2406.7,2406.3,4.15568463]
[1747639414681,2.39787325,2406.7,2405.8,17.955]
[1747639414972,4.15532258,2406.6,2406.2,4.15592736]
[1747639415970,1.4199,2406.7,2406.3,4.15575007]
[1747639416173,4.20480187,2406.9,2406.3,4.15575007]
[1747639416174,0.05,2406.9,2406.7,4.15499749]
[1747639416373,0.05,2406.9,2406.6,14.22215188]
[1747639416674,0.05,2406.9,2406.6,10.067]
[1747639416977,0.05,2406.9,2406.6,14.22222496]
[1747639417480,0.05,2406.9,2406.4,10.067]
[1747639417770,0.05,2406.9,2406.3,15.58585106]
[1747639417771,4.15521893,2406.7,2406.3,14.22274299]
[1747639417957,1.3886,2406.8,2406.4,4.15549739]
[1747639418161,1.3886,2406.8,2406.3,14.22267307]
[1747639418162,5.5436116,2406.8,2406.3,14.22267307]
[1747639418345,1.3886,2406.8,2406.5,4.15533683]
[1747639418557,1.3886,2406.8,2406.4,4.15551325]
[1747639418751,5.54351761,2406.8,2406.4,4.15551325]
[1747639418975,1.3886,2406.8,2406.4,4.15551325]
[1747639419348,1.3886,2406.8,2406.5,4.15529517]
[1747639419551,1.3886,2406.8,2406.4,4.15548065]
[1747639419884,2.36338899,2406.8,2405.8,17.955]
[1747639420180,5.54350244,2406.8,2406.0,14.22214515]
[1747639420355,5.54350244,2406.8,2406.3,4.15559716]
[1747639420684,4.15517292,2406.7,2406.1,4.15604393]
[1747639420998,5.54357237,2406.8,2406.0,10.066]
[1747639420999,5.54362592,2406.8,2406.0,10.066]
[1747639421291,5.54362592,2406.8,2406.3,4.15563416]
[1747639421292,4.15507476,2406.7,2406.3,4.15563416]
[1747639422500,4.15529441,2406.6,2406.2,4.38579765]
[1747639422794,4.15552431,2406.5,2406.3,0.22991459]
[1747639422999,4.20385277,2406.4,2406.3,0.22991459]
[1747639423493,1.3886,2406.8,2406.3,0.22991459]
[1747639423996,1.3886,2406.8,2406.3,4.38560738]
[1747639424322,4.20472469,2406.9,2406.5,4.15532958]
[1747639424591,0.05,2406.9,2406.5,4.15532958]
[1747639425368,0.05,2406.9,2406.6,0.04154957]
[1747639425572,0.05,2406.9,2406.8,4.15489446]
[1747639425756,0.05,2406.9,2406.8,14.17689446]
[1747639425962,0.05,2406.9,2406.8,15.79120905]
[1747639426686,0.05,2406.9,2406.8,24.01610883]
[1747639426872,0.05,2406.9,2406.8,5.99410883]
[1747639427283,0.05,2406.9,2406.8,26.07910883]
[1747639427679,0.05,2406.9,2406.8,34.07910883]
[1747639427910,0.05,2406.9,2406.8,34.46382836]
[1747639428084,0.05,2406.9,2406.8,26.46082836]
[1747639428479,0.05,2406.9,2406.8,6.37882836]
[1747639428685,0.05,2406.9,2406.8,26.45982836]
[1747639429579,0.05,2406.9,2406.8,6.37882836]
[1747639429782,0.05,2406.9,2406.8,26.45682836]
[1747639430392,0.05,2406.9,2406.8,5.99410883]
[1747639430596,0.05,2406.9,2406.8,26.07110883]
[1747639431074,0.05,2406.9,2406.8,26.06810883]
[1747639431270,0.05,2406.9,2406.8,5.99410883]
[1747639431470,0.05,2406.9,2406.8,26.01210883]
[1747639431779,0.05,2406.9,2406.8,16.00310883]
[1747639431980,0.05,2406.9,2406.8,0.45481437]
[1747639432185,4.20472184,2406.9,2406.8,0.45481437]
[1747639432512,6.4847503,2406.9,2406.8,0.45481437]
[1747639433018,0.05,2406.9,2406.7,4.15498391]
[1747639433312,0.05,2406.9,2406.7,4.15497399]
[1747639433469,0.05,2406.9,2406.8,4.15489446]
[1747639433675,0.05,2406.9,2406.8,5.54899446]
[1747639434807,0.05,2406.9,2406.8,5.77410551]
[1747639435013,0.05,2406.9,2406.8,13.77410551]
[1747639435712,0.05,2406.9,2406.8,15.84650551]
[1747639436360,0.05,2406.9,2406.8,16.39650551]
[1747639436655,0.05,2407.9,2407.8,4.15316886]
[1747639436840,0.05,2407.9,2407.8,24.16216886]
[1747639437774,0.05,2407.9,2407.8,25.72659489]
[1747639439133,0.05,2407.9,2407.8,5.72159489]
[1747639439328,0.05,2407.9,2407.8,25.49926886]
[1747639440470,0.05,2407.9,2407.8,33.49926886]
[1747639440771,0.05,2407.9,2407.8,33.72318759]
[1747639440979,0.05,2407.9,2407.8,33.71718759]
[1747639441269,0.05,2407.9,2407.8,25.71718759]
[1747639441571,0.45037392,2410.2,2408.4,0.55]
[1747639441793,0.45037392,2410.2,2410.1,4.14920542]
[1747639441966,0.45037392,2410.2,2410.1,42.07820542]
[1747639442163,0.45037392,2410.2,2410.1,42.3972808]
[1747639442797,0.45037392,2410.2,2410.1,43.7182808]
[1747639442988,0.45037392,2410.2,2410.1,23.7242808]
[1747639443137,0.45037392,2410.2,2410.1,43.7092808]
[1747639443495,0.45037392,2410.2,2410.1,23.7242808]
[1747639443639,0.45037392,2410.2,2410.1,43.7082808]
[1747639443838,0.45037392,2410.2,2410.1,43.7072808]
[1747639445155,1.0,2411.4,2411.3,4.14714054]
[1747639445358,1.0,2411.4,2411.3,42.05614054]
[1747639446170,1.0,2411.4,2411.3,17.928]
[1747639446371,1.0,2411.4,2411.3,27.928]
[1747639447297,1.0,2411.4,2411.1,10.0]
[1747639447298,4.14727746,2411.3,2411.1,10.0]
[1747639447597,4.14714054,2411.3,2411.1,10.0]
[1747639447809,4.14736901,2411.2,2411.1,10.0]
[1747639448301,4.14731254,2411.2,2411.1,10.0]
[1747639448459,1.0,2411.4,2411.2,0.8708]
[1747639448665,1.0,2411.4,2411.3,4.14714054]
[1747639448860,1.0,2411.4,2411.3,6.15943254]
[1747639449065,1.0,2411.4,2411.3,4.14714054]
[1747639449360,1.0,2411.4,2411.3,24.11414054]
[1747639449588,1.0,2411.4,2411.3,4.14714054]
[1747639449893,1.3633,2412.2,2411.4,4.14696856]
[1747639450061,2.49506336,2412.2,2411.6,4.14658529]
[1747639450261,2.49506336,2412.2,2411.5,22.06575031]
[1747639450462,1.3633,2412.2,2411.8,4.14627746]
[1747639450697,1.3633,2412.2,2411.5,17.919]
[1747639450899,1.3633,2412.2,2411.6,19.963]
[1747639451078,1.3633,2412.2,2411.7,4.14635965]
[1747639451602,1.3633,2412.2,2411.8,4.1462726]
[1747639452100,5.80902855,2412.3,2411.6,19.963]
[1747639452266,5.80902855,2412.3,2411.6,24.10958038]
[1747639452467,5.80902855,2412.3,2412.1,4.14563702]
[1747639452666,5.80902855,2412.3,2412.2,19.955]
[1747639452867,5.80902855,2412.3,2412.2,24.10059323]
[1747639453113,5.80902855,2412.3,2412.2,19.955]
[1747639455888,2.26041285,2412.1,2411.5,17.919]
[1747639456095,4.78655989,2412.0,2411.5,22.06571595]
[1747639456400,4.7865869,2412.0,2411.5,17.919]
[1747639456601,5.55317975,2411.9,2411.5,17.919]
[1747639456967,1.407,2411.9,2411.3,9.993]
[1747639457209,5.5531834,2411.9,2411.3,14.140049]
[1747639457416,5.5531834,2411.9,2410.9,22.05782578]
[1747639457417,0.96992321,2411.8,2410.9,17.91]
[1747639457616,4.55440082,2412.1,2411.0,14.14057929]
[1747639457617,4.14671852,2411.6,2411.0,14.14057929]
[1747639457915,4.1471504,2411.3,2410.9,17.91]
[1747639458065,1.3588,2411.2,2409.7,0.865]
[1747639458413,0.78801285,2412.1,2410.3,0.865]
[1747639458706,1.3588,2412.0,2411.5,4.14669488]
[1747639458909,1.3588,2412.0,2411.7,4.14638326]
[1747639459214,1.4457,2411.8,2411.1,17.909]
[1747639459397,1.4457,2411.2,2410.8,14.13992439]
[1747639459700,1.4457,2411.2,2410.9,4.14768136]
[1747639459880,1.4457,2411.2,2410.9,4.46351631]
[1747639460380,1.4457,2411.2,2411.0,4.14765501]
[1747639460581,1.4811,2411.5,2411.0,0.04147251]
[1747639460783,1.4811,2411.5,2411.0,4.14756568]
[1747639461409,6.60532885,2411.5,2410.7,4.14809833]
[1747639461616,4.14742687,2411.2,2410.8,19.892]
[1747639462113,4.14750126,2411.1,2410.6,4.14833517]
[1747639462264,4.14792241,2410.9,2410.7,9.946]
[1747639462674,5.55878569,2411.0,2410.4,18.21327205]
[1747639462874,4.1479266,2410.9,2410.4,18.21327205]
[1747639463076,4.1479266,2410.9,2410.5,19.891]
[1747639463578,4.14791553,2410.9,2410.5,19.891]
[1747639463992,4.14801558,2410.8,2410.5,19.891]
[1747639464512,4.14820977,2410.7,2410.4,18.21327205]
[1747639464698,4.14837782,2410.6,2410.4,17.909]
[1747639465014,5.5623169,2410.5,2410.4,17.909]
[1747639465398,1.4138,2410.5,2409.7,17.91]
[1747639465600,4.14924591,2410.1,2409.8,9.947]
[1747639465802,4.14904927,2410.2,2409.8,9.947]
[1747639466018,5.4873463,2409.9,2409.8,9.947]
[1747639466407,1.3377,2409.9,2409.8,9.947]
[1747639466623,5.48724977,2409.9,2409.8,9.947]
[1747639467040,4.14972196,2409.8,2409.7,17.91]
[1747639467343,4.15023863,2409.5,2409.4,0.38232645]
[1747639467622,4.1499695,2409.7,2409.4,0.38232645]
[1747639467833,4.15008983,2409.6,2409.4,0.38232645]
[1747639468134,4.15007331,2409.6,2409.4,0.38232645]
[1747639468286,4.15007331,2409.6,2409.1,14.09880381]
[1747639468982,1.4814,2409.8,2409.1,9.948]
[1747639469230,4.15007784,2409.6,2409.1,9.948]
[1747639469385,4.1502241,2409.6,2409.2,9.948]
[1747639469587,4.15000887,2409.7,2409.2,9.948]
[1747639470316,5.63117067,2409.8,2409.1,4.45421402]
[1747639470535,4.15002678,2409.7,2409.2,14.10074703]
[1747639470732,4.15000761,2409.7,2409.2,14.10068491]
[1747639471093,1.4814,2409.8,2409.2,9.95]
[1747639471294,5.6311995,2409.8,2409.2,9.95]
[1747639471517,4.14996875,2409.7,2409.2,14.10067]
[1747639472135,4.15014149,2409.6,2409.1,4.15091738]
[1747639472340,1.4214,2409.7,2408.7,22.44588507]
[1747639472644,4.15083408,2409.2,2409.0,9.95]
[1747639472939,4.15092773,2409.1,2409.0,9.95]
[1747639473487,5.57267515,2408.9,2408.7,18.29432645]
[1747639473690,1.4214,2408.9,2408.7,18.29432645]
[1747639474639,4.1514447,2408.8,2408.7,0.38232645]
[1747639474998,4.1514447,2408.8,2408.2,0.30456615]
[1747639474999,4.15182224,2408.6,2408.2,0.30456615]
[1747639475200,4.15182224,2408.6,2408.2,4.15244493]
[1747639475529,4.1514447,2408.8,2408.1,9.95]
[1747639475733,4.1516222,2408.7,2408.2,4.15233914]
[1747639477035,1.4214,2408.9,2407.9,17.916]
[1747639477331,1.3596,2408.2,2408.0,9.953]
[1747639477516,5.51211281,2408.2,2408.0,9.953]
[1747639477722,1.3596,2408.2,2407.8,0.38232645]
[1747639477919,4.15282951,2408.0,2407.8,0.38232645]
[1747639478106,4.1527794,2408.1,2407.8,0.38232645]
[1747639478515,4.15299638,2407.9,2407.8,0.38232645]
[1747639478727,4.15310544,2407.9,2407.5,9.953]
[1747639479111,1.3596,2408.2,2407.2,9.955]
[1747639479341,1.4622,2407.6,2407.2,9.955]
[1747639479511,4.15420405,2407.2,2406.8,19.886]
[1747639479705,5.53730405,2407.2,2406.7,17.924]
[1747639479904,5.53730405,2407.2,2406.6,0.38232645]
[1747639482336,5.53730405,2407.2,2406.3,14.11368966]
[1747639482819,5.53730405,2407.2,2406.4,4.1555252]
[1747639483017,5.53730405,2407.2,2406.7,4.1549873]
[1747639483235,5.53730405,2407.2,2406.4,14.42962411]
[1747639483549,5.53730405,2407.2,2406.4,10.2741189]
[1747639483728,5.53730405,2407.2,2406.6,4.15515804]
[1747639483933,1.3831,2407.2,2406.8,4.15489285]
[1747639484250,5.53730405,2407.2,2406.4,0.3161189]
[1747639484403,5.53730405,2407.2,2406.6,9.958]
[1747639484606,5.53730405,2407.2,2406.7,4.15503422]
[1747639484930,5.53730405,2407.2,2406.6,9.958]
[1747639485108,6.50644116,2407.2,2406.6,9.958]
[1747639485504,6.50644116,2407.2,2406.2,14.11587544]
[1747639485718,6.50644116,2407.2,2406.3,4.15575719]
[1747639486353,6.50644116,2407.2,2406.4,0.31194592]
[1747639486532,5.53730405,2407.2,2406.6,4.15513669]
[1747639486848,1.4455,2407.9,2407.0,0.8651]
[1747639487031,4.15380935,2407.5,2407.0,4.15452904]
[1747639487344,4.15370071,2407.5,2407.0,4.15446082]
[1747639487641,4.15334136,2407.7,2406.9,9.96]
[1747639487808,4.15402892,2407.4,2406.9,4.15471039]
[1747639488008,10.48585204,2407.8,2406.8,9.96]
[1747639488406,1.4455,2407.9,2407.0,4.15453761]
[1747639488716,4.15341594,2407.7,2407.2,4.15411162]
[1747639489050,1.4455,2407.9,2407.0,9.96]
[1747639489350,4.15348206,2407.7,2407.2,4.15417311]
[1747639489508,4.15359604,2407.6,2407.1,4.2042871]
[1747639489705,4.15359604,2407.6,2407.1,0.05]
[1747639489924,4.56889104,2407.6,2407.1,0.05]
[1747639490325,4.15377361,2407.5,2407.1,0.05]
[1747639490557,4.15406071,2407.3,2407.1,0.05]
[1747639490764,4.15420405,2407.2,2407.1,0.05]
[1747639491465,5.55042711,2407.3,2407.1,0.05]
[1747639491763,4.15420405,2407.2,2407.1,0.05]
[1747639492344,1.3963,2407.3,2407.1,0.05]
[1747639492530,4.15420405,2407.2,2407.1,0.05]
[1747639493067,5.55042705,2407.3,2407.1,0.05]
[1747639493267,4.15420405,2407.2,2407.1,0.05]
[1747639494267,5.55035281,2407.3,2407.1,0.05]
[1747639494564,1.3963,2407.3,2407.1,0.05]
[1747639494886,5.55040808,2407.3,2407.1,0.05]
[1747639495379,5.55038978,2407.3,2407.1,0.05]
[1747639495576,1.3852,2407.6,2407.1,0.05]
[1747639495933,4.1539419,2407.4,2407.1,0.05]
[1747639496155,4.15369146,2407.5,2407.1,0.05]
[1747639497471,5.53876892,2407.6,2407.1,0.05]
[1747639497871,4.15378925,2407.5,2407.1,0.05]
[1747639498970,4.15386151,2407.4,2407.1,0.05]
[1747639499547,1.3852,2407.6,2407.1,0.05]
[1747639499548,4.15415715,2407.3,2407.1,0.05]
[1747639499752,4.15381767,2407.5,2407.1,0.05]
[1747639499964,4.15400172,2407.4,2407.1,0.05]
[1747639500139,4.15405271,2407.3,2407.1,0.05]
[1747639500651,4.15387156,2407.4,2407.1,0.05]
[1747639501091,4.15408548,2407.3,2407.1,0.05]
[1747639501273,4.15420405,2407.2,2407.1,0.05]
[1747639501441,4.20247172,2407.2,2407.1,0.05]
[1747639501641,4.15420405,2407.2,2407.1,0.05]
[1747639502875,0.8307957,2407.3,2407.1,0.05]
[1747639503093,4.15348411,2407.7,2407.2,4.15408981]
[1747639503255,4.15320244,2407.8,2407.1,4.20432491]
[1747639503584,1.96171965,2407.8,2407.2,4.15414292]
[1747639503879,1.96171965,2407.8,2407.2,4.15418998]
[1747639504050,1.96171965,2407.8,2407.1,0.05]
[1747639504254,1.4293,2408.4,2407.4,4.15385893]
[1747639504468,1.4293,2409.0,2407.7,0.8651]
[1747639504645,9.923,2409.6,2408.7,4.15147577]